bitfinex-derivatives/quotes_ETHF0:USTF0_20250926
["timestamp","ask_amount","ask_price","bid_price","bid_amount"]
[1758849347116,0.1346,3941.5,3940.0,39.6881]
[1758849347117,0.3457,3940.9,3940.8,0.272]
[1758849347424,0.3457,3940.9,3940.4,0.45649]
[1758849347425,0.1346,3941.0,3940.6,0.272]
[1758849347612,0.3457,3940.9,3940.4,0.272]
[1758849347924,0.4803,3941.0,3940.4,0.72849]
[1758849348215,0.4803,3941.0,3939.8,5.29335851]
[1758849348216,0.3457,3940.7,3939.8,5.29335851]
[1758849348518,0.3457,3940.9,3940.4,0.45649]
[1758849349027,0.3457,3940.9,3940.3,0.272]
[1758849349222,0.1346,3941.0,3940.3,0.272]
[1758849349517,0.3457,3940.9,3939.8,5.41945851]
[1758849349718,0.3457,3940.9,3940.5,0.45649]
[1758849349917,0.1346,3941.0,3940.5,0.45649]
[1758849350116,0.3457,3940.9,3940.1,0.45653]
[1758849350315,0.3457,3940.9,3940.1,0.72953]
[1758849350517,0.3457,3940.9,3940.1,0.273]
[1758849350708,0.3457,3940.9,3940.5,0.45647]
[1758849350909,0.1346,3941.0,3940.5,0.45647]
[1758849351220,0.3457,3940.9,3940.6,0.45646]
[1758849351515,0.3457,3940.9,3940.7,0.45645]
[1758849351711,0.3457,3941.4,3941.3,0.45639]
[1758849352422,0.4803,3941.0,3940.9,0.273]
[1758849353115,0.4803,3941.5,3940.9,0.273]
[1758849353621,0.3457,3941.4,3940.9,0.273]
[1758849354215,0.1346,3941.0,3940.2,0.45651]
[1758849354417,0.3457,3940.9,3939.9,0.273]
[1758849354623,0.45645,3940.9,3940.1,0.45652]
[1758849355622,0.1346,3940.5,3940.2,0.45651]
[1758849355926,0.3457,3940.4,3940.2,0.45651]
[1758849356120,0.1346,3940.5,3939.9,0.273]
[1758849357016,0.1346,3940.5,3940.3,0.45651]
[1758849357222,0.3457,3940.4,3940.3,0.45651]
[1758849357819,0.3457,3940.4,3938.2,1.14189]
[1758849357820,0.3457,3940.3,3938.2,1.14189]
[1758849358022,0.3457,3939.9,3938.9,0.45667]
[1758849358324,0.3457,3939.9,3939.1,5.29335851]
[1758849358515,0.3457,3939.9,3939.6,0.45658]
[1758849358710,0.3457,3939.9,3939.8,0.45656]
[1758849359126,0.1346,3940.5,3939.2,0.273]
[1758849359127,0.3457,3940.4,3939.4,0.1261]
[1758849359320,0.1346,3940.5,3939.4,0.1261]
[1758849359321,0.45652,3940.3,3939.4,0.1261]
[1758849359519,0.1346,3940.0,3939.7,0.45658]
[1758849359719,0.3457,3939.9,3939.7,0.45658]
[1758849360223,0.4689,3940.5,3939.5,0.273]
[1758849360425,0.4689,3940.5,3939.6,0.122]
[1758849360629,0.3343,3940.4,3940.2,0.45651]
[1758849361218,0.1346,3940.5,3940.2,0.45651]
[1758849361417,0.1346,3940.5,3939.9,0.45655]
[1758849361418,0.59109,3940.5,3939.9,0.45655]
[1758849361614,0.59109,3940.5,3938.8,1.14171]
[1758849361615,0.4565,3940.4,3939.3,0.273]
[1758849361827,0.4565,3940.4,3939.7,0.45657]
[1758849362218,0.3343,3940.3,3939.3,0.72962]
[1758849362422,0.3343,3940.4,3939.2,0.273]
[1758849362624,0.1348,3940.0,3939.3,0.45662]
[1758849362823,0.1348,3940.0,3938.5,0.122]
[1758849362824,0.1348,3939.5,3939.0,0.45665]
[1758849363321,0.1348,3939.5,3939.2,0.45664]
[1758849363522,0.1348,3939.5,3938.5,0.122]
[1758849363523,0.3343,3939.4,3938.8,0.45668]
[1758849363722,0.1348,3939.5,3938.5,0.273]
[1758849363723,0.3343,3939.3,3938.5,0.273]
[1758849363955,0.3443,3939.4,3938.7,0.45669]
[1758849364131,0.3443,3939.4,3938.8,0.45667]
[1758849364624,0.1384,3939.0,3938.8,0.45667]
[1758849364828,0.1384,3939.0,3937.9,5.44075308]
[1758849364829,0.3443,3938.9,3937.9,5.44075308]
[1758849365027,0.3443,3938.6,3937.9,0.02539457]
[1758849365325,0.1384,3939.0,3938.4,0.45673]
[1758849365326,0.4827,3938.5,3938.4,0.45673]
[1758849365922,0.3443,3938.5,3938.4,0.45673]
[1758849366129,0.1384,3939.0,3938.7,0.45669]
[1758849366322,0.3443,3939.4,3939.1,0.45664]
[1758849366522,0.3443,3939.4,3938.4,0.272]
[1758849366523,0.3443,3939.4,3939.3,0.45662]
[1758849366720,0.1348,3940.0,3939.7,0.45657]
[1758849366921,0.3443,3940.4,3939.3,0.1208]
[1758849367130,0.1384,3940.5,3939.3,0.1208]
[1758849367329,0.1384,3940.5,3940.3,0.4565]
[1758849367524,0.4827,3940.5,3940.3,0.4565]
[1758849367826,0.4827,3940.5,3939.9,0.273]
[1758849367827,0.3443,3940.9,3940.8,0.45644]
[1758849368020,0.3443,3940.9,3939.6,1.14148]
[1758849368021,0.3443,3940.9,3940.2,0.57731]
[1758849368222,0.3443,3940.9,3939.5,5.29335851]
[1758849368223,0.3443,3940.9,3940.7,0.45645]
[1758849368622,0.3443,3940.9,3940.1,40.9208]
[1758849368836,0.3443,3940.9,3940.6,0.45647]
[1758849369036,0.1384,3941.0,3940.3,0.45651]
[1758849369531,0.45646,3940.7,3940.1,40.8]
[1758849369723,0.1384,3940.0,3939.9,0.45655]
[1758849369931,0.3443,3939.9,3939.6,0.273]
[1758849370126,0.1384,3940.0,3939.6,0.273]
[1758849370334,0.3443,3939.9,3939.6,0.273]
[1758849370530,0.1384,3940.0,3939.6,0.72958]
[1758849370725,0.45656,3939.9,3939.0,0.45665]
[1758849370923,0.1384,3939.5,3939.2,0.45664]
[1758849371326,0.3443,3939.4,3939.3,0.45661]
[1758849372330,0.1384,3940.0,3939.6,0.45658]
[1758849372533,0.52370645,3939.9,3939.8,0.45657]
[1758849372830,0.3443,3940.3,3940.2,0.45652]
[1758849373334,0.3443,3940.3,3939.4,0.3938]
[1758849373633,0.86795639,3940.2,3940.1,0.45652]
[1758849374931,0.86795639,3940.2,3939.5,40.8]
[1758849375131,0.1384,3940.5,3939.9,0.45654]
[1758849375331,0.5240346,3940.4,3940.0,0.45654]
[1758849375531,0.1384,3940.5,3940.0,0.45654]
[1758849375532,0.3443,3940.2,3940.0,0.45654]
[1758849375726,0.3443,3940.2,3939.5,40.8]
[1758849375727,0.3443,3940.4,3940.1,0.45652]
[1758849376034,0.3443,3940.2,3940.1,0.45652]
[1758849376233,0.8683144,3940.2,3940.1,0.45652]
[1758849376731,0.3443,3940.1,3939.0,5.29335851]
[1758849376935,0.3443,3939.4,3939.1,0.45664]
[1758849377235,0.3443,3939.4,3939.2,0.45663]
[1758849377530,0.3443,3939.4,3939.3,0.45662]
[1758849378527,0.3443,3939.4,3938.9,0.45667]
[1758849378736,0.1384,3939.5,3939.0,0.45665]
[1758849378928,0.1384,3939.5,3938.3,0.45674]
[1758849378929,0.3443,3938.9,3938.3,0.45674]
[1758849379238,0.3443,3938.4,3938.3,0.45674]
[1758849379828,0.3443,3938.4,3938.1,0.272]
[1758849380030,0.3443,3938.4,3938.0,0.45676]
[1758849380636,0.1384,3938.5,3937.9,0.02539457]
[1758849380830,0.1384,3938.5,3938.4,0.45673]
[1758849381238,0.66176445,3938.5,3938.4,0.45673]
[1758849381554,0.66176445,3938.5,3937.9,0.02539457]
[1758849381555,0.4827,3938.0,3937.9,0.02539457]
[1758849382229,0.3443,3938.0,3937.9,0.02539457]
[1758849382430,0.3443,3938.4,3938.3,0.45673]
[1758849382838,0.86756476,3938.4,3938.3,0.45673]
[1758849383932,0.1384,3939.0,3938.7,0.45668]
[1758849383933,0.3443,3938.9,3938.7,0.45668]
[1758849384243,0.4827,3939.5,3939.4,0.45661]
[1758849384539,1.00582031,3939.5,3939.4,0.45661]
[1758849385138,0.52312031,3939.5,3939.4,0.45661]
[1758849385339,0.4827,3940.0,3939.9,0.45656]
[1758849385540,1.00578832,3940.0,3939.9,0.45656]
[1758849386034,1.00578832,3940.0,3938.4,1.26261]
[1758849386035,0.3443,3939.9,3938.4,1.26261]
[1758849386240,0.3443,3939.9,3938.3,5.29335851]
[1758849386241,0.3443,3939.8,3939.7,0.45658]
[1758849386435,0.86738832,3939.8,3939.7,0.45658]
[1758849387038,0.4827,3939.5,3939.4,0.45661]
[1758849388347,0.3443,3939.4,3939.3,0.45662]
[1758849389541,0.1384,3939.5,3938.9,40.8]
[1758849389842,0.1384,3939.5,3938.3,0.1208]
[1758849389843,0.3443,3938.9,3938.3,0.272]
[1758849390038,0.1396,3938.5,3938.4,0.45673]
[1758849390233,0.1396,3938.5,3937.9,0.48218457]
[1758849390234,0.1396,3938.0,3937.9,0.48218457]
[1758849390541,0.3325,3938.4,3938.2,0.45675]
[1758849391345,0.4721,3938.5,3938.4,0.45673]
[1758849391640,0.1396,3938.5,3937.9,0.02539457]
[1758849391846,0.1396,3938.0,3937.9,0.02539457]
[1758849392056,0.1396,3938.0,3936.9,41.94225]
[1758849392057,0.4568,3937.9,3937.2,0.45686]
[1758849392350,0.3325,3937.7,3936.9,0.272]
[1758849392540,0.3325,3937.7,3937.3,0.45685]
[1758849392739,0.59639,3938.0,3936.7,0.45692]
[1758849392740,0.1396,3937.0,3936.7,0.45692]
[1758849392975,0.1396,3937.0,3936.5,0.45695]
[1758849393246,0.3325,3936.4,3936.3,0.45696]
[1758849393447,0.1396,3936.5,3935.1,1.14276]
[1758849393448,0.1396,3936.5,3936.0,0.457]
[1758849393845,0.3325,3936.4,3936.0,0.457]
[1758849394146,0.1396,3936.5,3935.7,0.45703]
[1758849394352,0.1396,3936.0,3935.7,0.45703]
[1758849394649,0.3325,3935.9,3935.7,0.45703]
[1758849394941,0.1396,3936.0,3935.8,0.45702]
[1758849395249,0.3325,3935.9,3935.8,0.45702]
[1758849395951,0.3325,3936.9,3936.8,0.45691]
[1758849397740,0.4568,3937.9,3937.1,0.45687]
[1758849397943,0.3325,3937.4,3937.1,0.45687]
[1758849399048,0.1396,3938.0,3937.2,0.45686]
[1758849399240,0.3325,3937.4,3937.2,0.45686]
[1758849399438,0.59638,3938.0,3937.2,0.45686]
[1758849399643,0.3325,3937.4,3937.2,0.45686]
[1758849400345,0.59638,3938.0,3937.2,0.45686]
[1758849400748,0.1396,3937.0,3936.9,0.4569]
[1758849401045,0.3325,3937.0,3936.9,0.4569]
[1758849401249,0.1396,3937.5,3936.4,1.1424]
[1758849401437,0.1396,3938.0,3937.6,0.45682]
[1758849402141,0.3325,3937.9,3937.7,0.4568]
[1758849403044,0.1396,3938.0,3937.7,0.4568]
[1758849403442,0.3325,3937.9,3937.5,0.45682]
[1758849403647,0.1396,3938.0,3937.5,0.45682]
[1758849404047,0.1396,3938.0,3937.7,0.4568]
[1758849404243,0.1396,3938.0,3936.8,1.14229]
[1758849404244,0.3325,3937.9,3937.8,0.45679]
[1758849404447,0.1396,3938.5,3938.4,0.45673]
[1758849405147,0.4721,3938.5,3938.4,0.45673]
[1758849405449,0.3325,3938.4,3938.2,0.45675]
[1758849405756,0.1396,3938.5,3938.2,0.45675]
[1758849405953,0.3325,3938.4,3938.2,0.45675]
[1758849406156,0.1396,3938.5,3938.2,0.45675]
[1758849406451,0.3325,3938.4,3938.2,0.45675]
[1758849407055,0.0253,3938.4,3938.2,0.45675]
[1758849407251,0.3325,3938.3,3938.2,0.45675]
[1758849407946,0.0253,3938.4,3938.3,0.1103]
[1758849408353,0.0253,3938.4,3938.2,0.45675]
[1758849408554,1.0712687,3939.5,3939.3,0.45663]
[1758849408555,0.3325,3939.4,3939.3,0.45663]
[1758849410049,0.1396,3940.5,3938.5,40.8]
[1758849410050,0.4721,3940.0,3938.9,0.1103]
[1758849410353,0.4721,3940.0,3938.5,40.8]
[1758849410354,0.3325,3939.4,3939.2,0.45664]
[1758849410658,0.3325,3939.4,3939.3,0.45662]
[1758849410963,0.3325,3939.4,3938.5,40.8]
[1758849411158,0.3325,3939.4,3938.6,0.271]
[1758849411658,0.3325,3939.4,3939.1,0.45665]
[1758849411854,0.1396,3939.5,3938.5,40.8]
[1758849412055,0.1396,3938.5,3938.2,0.45675]
[1758849412251,0.1396,3938.5,3938.3,0.45674]
[1758849412459,0.3325,3938.4,3938.3,0.45674]
[1758849412756,0.3325,3938.4,3937.5,4.7669612]
[1758849412958,0.3325,3938.4,3937.8,0.4568]
[1758849413154,0.1396,3938.5,3937.5,5.0379612]
[1758849413155,0.4721,3938.0,3937.9,0.45678]
[1758849413553,0.3325,3938.4,3938.3,0.45674]
[1758849414153,0.1396,3938.5,3937.7,0.271]
[1758849414355,0.3325,3938.4,3937.5,4.7669612]
[1758849414560,0.1396,3938.5,3938.0,0.45677]
[1758849414862,0.1396,3938.5,3937.8,0.4568]
[1758849415057,0.1396,3938.0,3937.8,0.4568]
[1758849415253,0.3325,3937.9,3937.8,0.4568]
[1758849415457,0.3325,3937.9,3937.5,5.0379612]
[1758849415458,0.3325,3937.9,3937.6,0.45682]
[1758849416164,0.3325,3937.9,3937.7,0.45681]
[1758849416355,0.1396,3938.0,3937.5,0.45684]
[1758849416554,0.1396,3938.0,3937.1,0.271]
[1758849416555,0.1396,3937.5,3937.2,0.45686]
[1758849416859,0.3325,3937.4,3937.2,0.45686]
[1758849417161,0.3325,3937.4,3936.3,4.8772612]
[1758849417460,0.3325,3937.4,3936.8,0.45691]
[1758849417655,0.59645,3937.5,3936.8,0.45691]
[1758849417855,0.3325,3937.4,3936.9,0.4569]
[1758849418252,0.1396,3937.0,3936.9,0.4569]
[1758849418562,0.4721,3937.0,3936.3,4.8772612]
[1758849418786,0.4721,3937.0,3936.4,0.271]
[1758849419263,0.3325,3936.9,3936.8,0.45691]
[1758849420565,0.45677,3938.2,3937.4,0.45684]
[1758849420756,0.1299,3937.5,3937.4,0.45684]
[1758849420962,0.4436,3937.5,3937.4,0.45684]
[1758849423566,0.4436,3937.5,3937.4,0.45685]
[1758849423959,0.3137,3937.5,3937.4,0.45685]
[1758849424162,0.3349,3938.4,3938.2,0.45675]
[1758849424357,0.52255544,3938.3,3937.8,0.4568]
[1758849424561,0.3349,3937.9,3937.8,0.4568]
[1758849424861,0.3349,3937.9,3937.6,0.271]
[1758849424862,0.3349,3937.9,3937.6,0.45683]
[1758849425259,0.4668,3938.0,3937.9,0.45679]
[1758849425662,0.3349,3937.9,3937.8,0.45679]
[1758849426156,0.1396,3938.5,3937.5,0.1101]
[1758849426157,0.3349,3938.3,3938.2,0.45676]
[1758849426361,0.3349,3938.7,3938.6,0.45671]
[1758849426565,0.85778821,3938.7,3938.6,0.45671]
[1758849426963,0.52288821,3938.7,3938.6,0.56681]
[1758849427263,0.0253,3939.0,3938.9,0.45668]
[1758849427459,0.0253,3939.0,3938.6,5.1101]
[1758849427460,0.1572,3939.0,3938.6,0.4567]
[1758849427769,0.3349,3938.4,3937.8,0.271]
[1758849428062,0.3349,3938.9,3938.7,0.45669]
[1758849428272,0.3349,3938.8,3938.7,0.45669]
[1758849428763,0.3349,3939.3,3939.2,0.45664]
[1758849429569,0.4668,3939.5,3939.4,0.45662]
[1758849430867,0.3349,3939.5,3939.4,0.45662]
[1758849431067,0.4668,3940.0,3939.9,0.45656]
[1758849432463,0.4668,3940.0,3939.5,0.45661]
[1758849432464,0.1319,3940.0,3939.5,0.45661]
[1758849432670,0.1319,3940.0,3939.6,0.45659]
[1758849433306,0.3349,3939.9,3939.7,0.45657]
[1758849433770,0.3349,3939.9,3939.5,0.4566]
[1758849433961,0.1319,3940.0,3939.1,0.45665]
[1758849433962,0.1319,3939.5,3939.1,0.45665]
[1758849434167,0.3349,3939.4,3939.1,0.45665]
[1758849434370,0.1319,3939.5,3939.1,0.45665]
[1758849434563,0.1319,3939.5,3938.9,0.271]
[1758849434564,0.4668,3940.0,3939.3,4.7669612]
[1758849434765,0.1319,3940.0,3939.5,0.4566]
[1758849434963,0.1319,3940.0,3939.6,0.45659]
[1758849435576,0.3349,3939.9,3939.6,0.45659]
[1758849435770,0.1319,3940.0,3939.6,0.45659]
[1758849435976,0.3349,3939.9,3939.6,0.45659]
[1758849436575,0.1319,3940.0,3939.6,0.45659]
[1758849436876,0.3349,3939.9,3939.6,0.45659]
[1758849437074,0.3349,3939.9,3939.7,0.45657]
[1758849437574,0.1319,3940.0,3939.7,0.45657]
[1758849437772,0.45658,3939.7,3938.1,1.14191]
[1758849437975,0.3349,3938.9,3938.7,0.4567]
[1758849438176,0.45669,3938.9,3938.2,0.45675]
[1758849438377,0.1319,3938.5,3938.3,0.45673]
[1758849438573,0.3349,3938.4,3938.3,0.45673]
[1758849439574,0.3349,3938.4,3937.7,39.601]
[1758849439575,0.1319,3938.5,3937.5,4.7669612]
[1758849439769,0.3349,3938.4,3937.6,0.271]
[1758849440071,0.3349,3938.4,3937.1,4.8770612]
[1758849440276,0.3349,3938.2,3937.2,0.271]
[1758849440476,0.1319,3938.0,3937.8,0.45679]
[1758849440779,0.3349,3937.9,3937.8,0.45679]
[1758849441371,0.1319,3939.0,3938.6,0.4567]
[1758849441571,0.52192962,3938.9,3938.6,0.4567]
[1758849441777,0.1319,3939.0,3938.6,0.4567]
[1758849442176,0.3349,3938.9,3938.7,0.45669]
[1758849442375,0.1319,3939.0,3938.2,0.271]
[1758849442580,0.1319,3938.5,3938.2,0.271]
[1758849442777,0.1319,3938.5,3938.2,0.45675]
[1758849443379,0.3349,3938.4,3938.2,0.45675]
[1758849443575,0.1319,3938.5,3938.4,0.45673]
[1758849444079,0.4668,3938.5,3938.4,0.45673]
[1758849444282,0.4668,3939.0,3938.9,0.45668]
[1758849444478,0.3349,3939.4,3938.7,0.3811]
[1758849444875,0.3349,3939.4,3938.7,41.1811]
[1758849445271,0.3349,3939.4,3939.3,0.45662]
[1758849447282,0.1319,3940.0,3939.4,0.45661]
[1758849447478,0.98868483,3939.5,3939.4,0.45661]
[1758849448183,0.4668,3939.5,3939.4,0.45661]
[1758849448484,0.98881086,3939.5,3939.4,0.45661]
[1758849448788,0.4668,3940.0,3939.9,0.45656]
[1758849449178,0.98875402,3940.0,3939.9,0.45656]
[1758849449378,0.0253,3940.1,3939.9,0.56666]
[1758849449685,0.0253,3940.1,3939.9,0.45656]
[1758849449883,0.0253,3940.1,3940.0,0.1101]
[1758849450082,0.1319,3941.0,3940.9,0.45644]
[1758849450083,0.4563,3941.0,3940.9,0.45644]
[1758849450685,0.4563,3941.5,3941.4,0.45638]
[1758849451078,0.97802266,3941.5,3941.4,0.45638]
[1758849451777,0.4563,3941.5,3941.4,0.45638]
[1758849452383,0.1319,3941.5,3941.2,0.45641]
[1758849452573,0.3244,3941.4,3940.7,0.1099]
[1758849452781,0.1319,3941.5,3941.2,0.4564]
[1758849452981,0.3244,3941.4,3941.3,0.45639]
[1758849455691,0.1338,3942.0,3941.7,0.45635]
[1758849455986,0.0253,3942.1,3942.0,0.45632]
[1758849456195,0.022,3942.9,3942.8,0.45622]
[1758849456384,0.022,3942.9,3942.8,5.5787812]
[1758849456686,0.1338,3944.0,3943.7,0.45611]
[1758849457191,0.1338,3944.0,3943.0,0.45619]
[1758849457192,0.1338,3943.5,3943.0,0.45619]
[1758849457385,0.1338,3943.5,3942.8,40.8]
[1758849457386,0.3244,3943.4,3942.8,40.8]
[1758849457689,0.3244,3943.4,3942.8,0.72722]
[1758849457880,0.3244,3943.4,3942.8,0.45622]
[1758849458381,0.1338,3943.5,3942.4,40.8]
[1758849458591,0.3244,3942.4,3942.3,0.45627]
[1758849460584,0.3244,3942.4,3942.3,0.72727]
[1758849460889,0.3244,3943.4,3943.2,0.45616]
[1758849461190,0.3244,3943.9,3943.6,0.45613]
[1758849461384,0.3244,3943.9,3943.8,0.4561]
[1758849461579,0.3244,3943.9,3943.2,0.271]
[1758849462287,0.3244,3943.9,3943.7,0.45611]
[1758849462590,0.1411,3944.0,3943.3,0.271]
[1758849462791,0.1411,3944.0,3943.4,0.45615]
[1758849462985,0.3244,3943.9,3943.8,0.4561]
[1758849463596,0.1411,3944.0,3943.8,0.4561]
[1758849463597,0.0073,3944.0,3943.8,0.4561]
[1758849463795,0.3317,3944.0,3943.9,0.271]
[1758849464093,0.3317,3944.0,3943.5,0.271]
[1758849464094,0.1411,3944.0,3943.5,0.271]
[1758849464397,0.0073,3944.0,3943.8,0.4561]
[1758849464788,0.1411,3944.0,3943.5,0.271]
[1758849465093,0.1411,3944.0,3943.1,0.45619]
[1758849465287,0.1338,3943.5,3942.6,0.0626]
[1758849465490,0.7806,3943.1,3942.2,0.45629]
[1758849465691,0.3244,3942.9,3942.3,0.45627]
[1758849466396,0.3244,3942.9,3942.1,41.071]
[1758849466592,0.1338,3943.0,3942.7,0.45623]
[1758849466890,0.1338,3943.0,3942.1,41.071]
[1758849466891,0.3244,3942.9,3942.5,0.45625]
[1758849467095,0.3244,3942.9,3942.3,0.45627]
[1758849467387,0.1338,3943.0,3942.6,0.45623]
[1758849467388,0.4582,3943.0,3942.6,0.45623]
[1758849467590,0.1338,3943.0,3942.6,0.45623]
[1758849467787,0.3244,3942.9,3942.6,0.45623]
[1758849467986,0.1338,3943.0,3942.7,0.45622]
[1758849468190,0.3244,3942.9,3942.7,0.45622]
[1758849468389,0.1338,3943.0,3942.1,40.8]
[1758849468594,0.1338,3943.5,3942.1,40.8]
[1758849468595,0.3244,3943.4,3942.7,0.0626]
[1758849468884,0.1338,3943.5,3942.9,0.45621]
[1758849469097,0.1338,3943.5,3943.0,0.45619]
[1758849469285,0.1338,3943.5,3943.2,0.45617]
[1758849469481,0.3244,3943.5,3943.2,0.51877]
[1758849469679,0.45613,3943.7,3942.6,0.0626]
[1758849469886,0.3244,3943.2,3942.6,0.271]
[1758849470080,0.3244,3943.4,3942.5,0.45625]
[1758849470294,0.3244,3943.4,3942.6,0.72724]
[1758849470489,0.3244,3943.4,3942.7,0.45622]
[1758849470688,0.1338,3943.5,3942.9,0.4562]
[1758849470889,0.4582,3943.5,3943.2,0.45616]
[1758849471189,0.1411,3944.0,3943.5,0.45613]
[1758849471385,0.1411,3944.0,3943.7,0.45612]
[1758849471602,0.1411,3944.0,3943.3,0.0626]
[1758849471603,0.3244,3943.9,3943.3,0.0626]
[1758849472092,0.0073,3944.0,3943.8,0.4561]
[1758849472290,0.0073,3944.0,3943.8,0.7897]
[1758849472487,0.0073,3944.0,3943.9,0.0626]
[1758849472899,0.3244,3944.3,3943.9,0.0626]
[1758849473100,0.3244,3944.4,3943.5,41.25613]
[1758849473297,0.3244,3944.4,3944.0,0.45608]
[1758849473596,0.3244,3944.4,3944.0,0.271]
[1758849473902,0.1338,3944.5,3943.7,0.45611]
[1758849474394,0.45608,3944.1,3942.5,5.41470721]
[1758849474591,0.45608,3944.1,3942.4,39.563]
[1758849474592,0.45614,3943.6,3941.8,0.0626]
[1758849474792,0.58995,3943.5,3942.4,0.45626]
[1758849474990,0.1338,3943.5,3942.7,0.45622]
[1758849475187,0.1338,3943.5,3942.5,0.45625]
[1758849475397,0.1338,3943.5,3941.7,46.15210721]
[1758849475398,0.1338,3943.0,3941.7,46.15210721]
[1758849475595,0.3244,3942.9,3941.8,0.271]
[1758849476201,0.0253,3942.8,3941.8,0.271]
[1758849476499,0.3244,3942.7,3941.7,46.15210721]
[1758849476701,0.3244,3942.7,3941.7,46.08950721]
[1758849476702,0.3244,3942.6,3941.7,46.08950721]
[1758849476904,0.45624,3942.7,3941.7,46.08950721]
[1758849476905,0.3244,3942.4,3941.8,0.271]
[1758849477204,0.3244,3942.4,3941.8,0.72733]
[1758849477399,0.1338,3942.5,3940.7,0.0626]
[1758849477400,0.33935424,3942.5,3940.7,0.0626]
[1758849477706,0.3244,3941.9,3940.8,0.271]
[1758849477893,0.1338,3942.0,3941.2,0.4564]
[1758849478205,0.51967351,3941.9,3941.2,0.4564]
[1758849478406,0.51967351,3941.8,3941.2,0.4564]
[1758849478595,0.1338,3942.0,3941.2,0.4564]
[1758849478795,0.52025758,3941.9,3941.2,0.4564]
[1758849479094,0.52025758,3941.8,3941.2,0.4564]
[1758849479296,0.1338,3941.5,3940.9,0.45643]
[1758849479493,0.1338,3941.5,3940.4,0.4565]
[1758849479803,0.84518553,3941.4,3940.5,0.271]
[1758849480001,0.3244,3941.4,3940.5,0.271]
[1758849480204,0.3244,3941.4,3940.6,0.45647]
[1758849480398,0.3244,3941.4,3940.3,40.8]
[1758849480399,0.316,3941.4,3940.3,40.8]
[1758849480694,0.1338,3941.5,3939.5,0.0626]
[1758849480695,0.316,3940.7,3940.1,0.271]
[1758849480912,0.132,3940.5,3940.1,0.271]
[1758849481093,0.316,3940.4,3940.1,0.271]
[1758849481294,0.132,3940.5,3940.1,0.271]
[1758849481499,0.316,3940.4,3940.1,0.271]
[1758849482401,0.132,3940.5,3940.1,0.271]
[1758849482599,0.316,3940.4,3940.1,0.271]
[1758849482803,0.448,3940.0,3939.6,0.271]
[1758849483005,0.448,3940.0,3937.9,1.36044378]
[1758849483006,0.316,3939.5,3938.4,0.45672]
[1758849483205,0.316,3939.4,3938.4,0.45672]
[1758849483500,0.316,3939.4,3938.5,0.271]
[1758849483701,0.316,3939.4,3938.5,0.72771]
[1758849484000,0.132,3940.0,3939.1,0.0638]
[1758849484001,0.4647,3940.0,3939.1,0.0638]
[1758849484203,0.3327,3939.9,3939.2,0.271]
[1758849484404,0.3327,3939.8,3939.1,0.72765]
[1758849484611,0.3327,3939.8,3939.1,0.271]
[1758849484806,0.132,3940.0,3938.7,5.28950721]
[1758849484807,0.3327,3939.6,3938.7,5.28950721]
[1758849485102,0.3327,3939.6,3938.9,0.0638]
[1758849485302,0.3327,3939.9,3939.7,0.45658]
[1758849485794,0.132,3940.0,3939.7,0.45658]
[1758849485999,0.3327,3939.9,3939.7,0.45658]
[1758849486203,0.132,3940.0,3939.7,0.45658]
[1758849486398,0.3327,3939.9,3938.7,5.28950721]
[1758849486598,0.78927,3939.8,3938.9,0.45666]
[1758849486904,0.3327,3939.4,3939.0,0.271]
[1758849487098,0.1373,3939.5,3939.0,0.271]
[1758849487304,0.3327,3939.4,3939.2,0.45663]
[1758849487705,0.132,3940.0,3939.2,5.0]
[1758849487897,0.132,3940.0,3939.1,0.0638]
[1758849488118,0.132,3940.0,3939.7,0.45657]
[1758849488301,0.3327,3940.1,3939.9,0.45655]
[1758849488803,0.132,3940.5,3939.6,0.271]
[1758849489009,0.3327,3940.9,3940.2,0.4565]
[1758849489210,0.3327,3940.9,3940.3,0.271]
[1758849489503,0.3327,3940.9,3940.5,0.45647]
[1758849489708,0.3327,3940.9,3940.1,5.28950721]
[1758849489903,0.3327,3940.9,3940.2,0.271]
[1758849490097,0.3327,3940.9,3940.3,0.7275]
[1758849490301,0.3327,3940.9,3940.3,0.271]
[1758849490611,0.3327,3941.4,3940.9,0.45643]
[1758849491003,0.3327,3941.4,3941.0,0.45641]
[1758849491610,0.3327,3941.4,3940.9,0.271]
[1758849491611,0.3327,3941.4,3941.2,0.4564]
[1758849491797,0.3327,3941.4,3940.9,0.271]
[1758849491798,0.3327,3941.9,3941.4,0.45638]
[1758849492204,0.1373,3942.0,3941.4,0.45638]
[1758849492407,0.3327,3941.9,3941.4,0.45638]
[1758849492602,0.3327,3941.9,3941.5,0.45636]
[1758849492803,0.1373,3942.5,3942.1,0.45629]
[1758849493003,0.1373,3942.5,3942.4,0.45626]
[1758849493214,0.47,3942.5,3942.4,0.45626]
[1758849493415,0.47,3942.5,3942.1,0.271]
[1758849493416,0.3327,3942.4,3942.1,0.271]
[1758849493713,0.1373,3942.5,3941.1,5.28950721]
[1758849493915,0.45621,3942.9,3940.5,11.41202]
[1758849493916,0.47,3943.0,3942.8,0.4562]
[1758849494110,0.47,3943.0,3942.1,5.28950721]
[1758849494111,0.3327,3943.4,3942.7,0.271]
[1758849494315,0.1373,3943.5,3942.9,0.45619]
[1758849494316,0.47,3943.5,3942.9,0.45619]